bitfinex/quotes_ETHUSD_20240719
["timestamp","ask_amount","ask_price","bid_price","bid_amount"]
[1721399569954,0.577837,3461.0,3459.9,2.89025]
[1721399570156,2.88959,3460.7,3459.6,2.8170857]
[1721399570375,2.88959,3460.7,3459.6,2.3172]
[1721399571288,2.89006,3460.2,3459.2,0.1501131]
[1721399571595,0.57799,3460.1,3459.2,0.1501131]
[1721399571802,2.89006,3460.2,3459.2,0.1501131]
[1721399572214,2.89018,3460.0,3459.2,0.1501131]
[1721399572501,2.4694,3460.6,3459.2,0.1501131]
[1721399572697,2.89,3460.2,3459.2,0.1501131]
[1721399573360,2.89027,3459.9,3459.2,0.1501131]
[1721399573763,3.468305,3459.9,3459.2,0.1501131]
[1721399574100,3.582,3460.4,3459.2,0.1501131]
[1721399574311,3.0,3460.8,3459.3,0.05779867]
[1721399574507,3.0,3460.8,3459.2,0.1501131]
[1721399574508,2.88985,3460.4,3459.2,0.1501131]
[1721399574870,3.0,3460.8,3459.2,0.1501131]
[1721399574871,2.89023,3460.0,3459.2,0.1501131]
[1721399575069,2.8901,3460.1,3459.3,0.55]
[1721399575272,3.17922,3460.0,3459.3,0.55]
[1721399575575,2.89041,3459.8,3459.3,0.55]
[1721399576300,3.17922,3460.0,3459.3,0.55]
[1721399576470,2.89026,3459.9,3459.2,0.1501131]
[1721399576670,0.28901,3460.0,3459.2,0.1501131]
[1721399576872,2.89019,3460.0,3459.2,0.1501131]
[1721399577512,2.89043,3459.7,3459.2,0.1501131]
[1721399577723,2.89048,3459.7,3459.2,0.1501131]
[1721399578124,2.89052,3459.6,3459.2,0.1501131]
[1721399578305,2.89034,3459.8,3459.2,0.1501131]
[1721399578473,3.468472,3459.7,3459.2,0.1501131]
[1721399578874,2.89075,3459.3,3459.2,0.1501131]
[1721399580020,2.89051,3459.6,3459.2,0.1501131]
[1721399580179,2.89059,3459.5,3459.2,0.1501131]
[1721399580523,2.89075,3459.3,3459.2,0.1501131]
[1721399580674,0.45245079,3459.3,3459.2,0.1501131]
[1721399581388,0.578052,3459.7,3459.2,0.1501131]
[1721399581817,2.4541,3460.5,3459.2,0.1501131]
[1721399581818,2.89014,3460.1,3459.2,0.1501131]
[1721399581979,2.89026,3459.9,3459.3,0.55]
[1721399582176,2.89008,3460.1,3459.3,0.55]
[1721399582488,2.88994,3460.3,3459.3,0.55]
[1721399582489,2.89018,3460.0,3459.3,0.55]
[1721399582825,2.89004,3460.2,3459.3,0.55]
[1721399583145,3.877997,3460.1,3459.3,0.55]
[1721399583322,2.88943,3460.9,3459.4,2.89062]
[1721399583529,2.88967,3460.6,3459.5,0.55]
[1721399583822,2.88984,3460.4,3459.5,0.55]
[1721399583973,2.88984,3460.4,3459.3,0.55]
[1721399584178,3.467891,3460.3,3459.3,0.55]
[1721399584410,2.89016,3460.1,3459.3,0.55]
[1721399585333,2.89017,3460.0,3459.3,0.55]
[1721399585550,2.89028,3459.9,3459.2,0.1501131]
[1721399585699,2.89017,3460.0,3459.2,0.1501131]
[1721399585700,2.89034,3459.8,3459.2,0.1501131]
[1721399585898,3.468501,3459.7,3459.2,0.1501131]
[1721399586105,2.89068,3459.4,3459.2,0.1501131]
[1721399586345,5.7815,3459.3,3459.2,0.1501131]
[1721399587039,2.89166,3458.3,3458.1,0.054086]
[1721399587243,0.289166,3458.2,3458.1,0.054086]
[1721399587545,3.180836,3458.2,3458.1,0.054086]
[1721399587744,6.072506,3458.2,3458.1,0.054086]
[1721399588509,2.89127,3458.7,3458.1,0.054086]
[1721399588715,3.582,3458.9,3458.1,0.054086]
[1721399588716,6.4731,3458.9,3458.1,0.054086]
[1721399588904,2.89127,3458.7,3458.1,0.054086]
[1721399589537,3.0,3458.8,3458.1,0.054086]
[1721399589800,3.468471,3459.7,3458.2,2.4648]
[1721399590001,3.468471,3459.7,3458.3,1.1055886]
[1721399590002,2.89068,3459.4,3458.3,1.1055886]
[1721399590234,0.46589137,3459.6,3458.4,5.9285]
[1721399590406,3.582,3459.9,3458.3,1.16340853]
[1721399590407,2.89031,3459.9,3458.6,2.328]
[1721399590612,2.89037,3459.8,3458.7,0.55]
[1721399590796,2.88988,3460.4,3458.7,0.55]
[1721399590797,2.89048,3459.7,3458.7,0.55]
[1721399591000,2.89056,3459.6,3458.7,0.55]
[1721399591201,2.89001,3460.2,3458.3,0.5555886]
[1721399591427,3.582,3459.3,3458.1,0.054086]
[1721399591816,2.89108,3459.0,3458.1,0.054086]
[1721399592013,5.89087,3459.2,3458.1,0.054086]
[1721399592306,3.0,3459.2,3458.1,0.054086]
[1721399592530,2.89093,3459.1,3458.1,0.054086]
[1721399592736,5.89089,3459.2,3458.1,0.6523906]
[1721399593039,2.89099,3459.1,3458.1,0.6523906]
[1721399593403,2.89099,3459.1,3458.2,0.55]
[1721399593615,2.89099,3459.1,3458.1,0.6523906]
[1721399593616,3.0,3459.2,3458.1,0.054086]
[1721399594017,3.0,3459.2,3458.1,2.945826]
[1721399594214,3.0,3459.2,3458.2,0.94529713]
[1721399594544,2.89098,3459.1,3458.2,0.8874746]
[1721399594713,2.89098,3459.1,3458.1,3.091086]
[1721399594922,3.0,3459.2,3458.2,0.05782255]
[1721399595252,2.89059,3459.5,3458.4,3.037]
[1721399595420,2.89046,3459.7,3458.5,0.55]
[1721399595619,9.47234,3459.8,3458.6,8.35981]
[1721399595836,10.7374851,3459.8,3458.7,0.55]
[1721399596034,4.07986273,3460.9,3458.7,3.587]
[1721399596035,6.47194,3460.3,3458.7,3.587]
[1721399596243,2.3907,3461.0,3458.7,3.587]
[1721399596244,2.88984,3460.4,3459.1,3.037]
[1721399596408,2.88976,3460.5,3459.2,0.55]
[1721399596611,2.88984,3460.4,3459.2,3.44078]
[1721399596809,2.3907,3461.0,3459.2,3.44078]
[1721399596810,2.88967,3460.6,3459.2,0.55]
[1721399597021,5.28008,3461.0,3459.2,0.55]
[1721399597022,3.178767,3460.5,3459.3,0.64779]
[1721399597350,3.178767,3460.5,3459.4,0.60780425]
[1721399597512,0.288967,3460.5,3459.4,0.55]
[1721399598176,2.88998,3460.3,3459.4,0.55]
[1721399598472,2.88984,3460.4,3459.4,0.55]
[1721399598672,0.6068397,3460.4,3459.4,0.55]
[1721399599009,2.88993,3460.3,3459.4,0.55]
[1721399599252,6.47158,3460.8,3459.4,3.587]
[1721399599464,2.88958,3460.8,3459.6,2.276]
[1721399599657,2.88958,3460.8,3459.7,0.55]
[1721399599870,2.8896,3460.7,3459.7,1.425356]
[1721399600054,2.88973,3460.6,3459.7,0.55]
[1721399600817,2.88977,3460.5,3459.7,0.55]
[1721399601015,2.8899,3460.4,3459.7,0.55]
[1721399601236,2.8899,3460.4,3459.4,0.55]
[1721399601438,2.89009,3460.1,3459.4,0.55]
[1721399601646,2.89009,3460.1,3459.1,3.587]
[1721399601647,3.468091,3460.1,3459.1,3.587]
[1721399602148,3.0,3460.7,3459.1,3.587]
[1721399602460,3.0,3460.7,3459.2,3.037]
[1721399602621,3.0,3460.7,3459.4,3.037]
[1721399602821,3.0,3460.7,3459.5,3.587]
[1721399603025,5.88964,3460.7,3459.5,3.037]
[1721399603235,3.92017779,3460.6,3459.6,0.55]
[1721399603624,1.03044779,3460.6,3459.6,0.55]
[1721399603825,2.88976,3460.5,3459.6,0.55]
[1721399604047,2.88973,3460.6,3459.7,2.48109774]
[1721399604320,2.88925,3461.1,3459.8,0.55]
[1721399604529,0.647125,3461.0,3459.8,0.55]
[1721399604728,2.88969,3460.6,3459.8,0.55]
[1721399604926,3.536465,3461.0,3459.8,0.55]
[1721399605369,6.47114,3461.3,3459.9,3.037]
[1721399605569,2.88918,3461.2,3460.0,3.587]
[1721399605955,2.88918,3461.2,3460.0,6.47716]
[1721399606429,2.889,3461.4,3460.1,5.92707]
[1721399606632,2.88885,3461.6,3460.3,2.3192]
[1721399606833,2.88867,3461.8,3460.5,5.92674]
[1721399607031,2.88852,3462.0,3460.6,5.98444029]
[1721399607268,2.88852,3462.0,3460.7,3.037]
[1721399607436,2.88852,3462.0,3460.7,5.92656]
[1721399607634,2.88858,3461.9,3460.8,1.142656]
[1721399608077,2.88871,3461.8,3460.8,1.142656]
[1721399609074,2.88875,3461.7,3460.8,1.142656]
[1721399609285,2.88858,3461.9,3460.8,1.142656]
[1721399609575,2.88876,3461.7,3460.9,0.4179656]
[1721399609759,2.8886,3461.9,3461.0,0.55]
[1721399610072,2.88874,3461.8,3461.0,0.55]
[1721399610280,2.88925,3461.1,3460.3,2.3192]
[1721399610571,3.582,3461.7,3459.7,2.3032]
[1721399610572,2.88976,3460.5,3459.7,2.3032]
[1721399610782,2.88958,3460.8,3459.7,2.3032]
[1721399610783,2.88963,3460.7,3459.7,2.3032]
[1721399611847,2.88923,3461.2,3459.9,5.92718]
[1721399612055,2.88923,3461.2,3459.7,5.19362]
[1721399612056,2.88894,3461.5,3460.3,2.88991]
[1721399612262,3.0,3461.6,3460.3,3.037]
[1721399612585,0.6582,3461.5,3460.0,3.037]
[1721399612743,3.54713,3461.5,3460.3,5.92684]
[1721399612942,0.6582,3461.5,3460.4,6.47682]
[1721399613287,0.6582,3461.5,3460.5,0.55]
[1721399613434,3.0,3461.6,3460.6,5.4211]
[1721399613639,2.88871,3461.8,3460.7,0.55]
[1721399614052,2.88844,3462.1,3460.7,0.55]
[1721399614053,2.88858,3462.0,3460.7,6.47655]
[1721399614594,2.88858,3462.0,3460.9,3.037]
[1721399614879,2.88858,3462.0,3461.0,0.55]
[1721399615082,2.88859,3461.9,3461.0,0.55]
[1721399615249,2.88791,3462.8,3460.6,2.3841]
[1721399615250,3.582,3461.7,3460.6,2.3841]
[1721399615453,3.582,3461.7,3459.5,7.47559456]
[1721399615454,2.88946,3460.9,3459.7,5.22831]
[1721399615702,2.88946,3460.9,3459.7,2.3379]
[1721399615848,2.88956,3460.8,3459.7,2.3379]
[1721399616048,2.88936,3461.0,3459.7,2.860748]
[1721399616288,2.88936,3461.0,3459.8,3.037]
[1721399616559,3.0,3461.6,3459.8,3.037]
[1721399616560,2.88942,3460.9,3459.8,3.037]
[1721399616944,5.88888,3461.6,3459.7,2.860748]
[1721399616945,2.4451,3460.7,3459.7,0.522848]
[1721399617176,2.89001,3460.2,3459.0,2.891]
[1721399617391,2.89001,3460.2,3459.1,3.55989]
[1721399617742,6.0271,3460.7,3459.1,3.55989]
[1721399617743,2.89017,3460.0,3459.1,0.52289]
[1721399618059,2.89002,3460.2,3458.8,5.22907]
[1721399618264,2.88986,3460.4,3459.0,3.037]
[1721399618473,3.0,3460.6,3459.4,3.037]
[1721399618784,2.88935,3461.0,3459.8,3.037]
[1721399619640,2.88935,3461.0,3459.9,0.55]
[1721399619887,2.88917,3461.2,3459.9,3.587]
[1721399620084,6.47101,3461.4,3459.9,3.587]
[1721399620085,6.471,3461.4,3460.0,3.037]
[1721399620386,2.88942,3460.9,3460.1,0.55]
[1721399620990,2.88963,3460.7,3460.1,0.55]
[1721399621141,2.88963,3460.7,3458.8,13.22]
[1721399621337,2.88976,3460.5,3458.9,3.05780395]
[1721399621537,2.89002,3460.2,3458.8,10.22]
[1721399621762,2.89013,3460.1,3458.8,13.11117]
[1721399621974,2.89013,3460.1,3459.1,3.037]
[1721399622178,2.89022,3460.0,3458.9,2.4257]
[1721399622384,3.582,3460.4,3458.9,2.4257]
[1721399622591,2.89009,3460.1,3459.0,0.97557]
[1721399623008,2.89017,3460.0,3459.0,0.97557]
[1721399623293,2.89052,3459.6,3458.9,2.4257]
[1721399623792,0.4229163,3460.3,3458.9,2.4257]
[1721399623962,2.89026,3459.9,3458.9,2.4257]
[1721399624157,2.89034,3459.8,3458.9,2.4257]
[1721399624714,0.53826049,3459.9,3459.0,0.55]
[1721399624880,3.4229163,3460.3,3459.1,3.037]
[1721399625056,2.89001,3460.2,3459.2,0.55]
[1721399625259,0.4229163,3460.3,3459.2,0.55]
[1721399625511,5.88946,3460.9,3459.2,0.55]
[1721399625512,2.89005,3460.2,3459.2,0.55]
[1721399626179,2.89023,3460.0,3459.1,0.55]
[1721399626512,2.89023,3460.0,3458.9,2.4257]
[1721399626513,2.89023,3460.0,3459.0,0.55]
[1721399627618,2.89008,3460.2,3459.0,0.55]
[1721399628110,2.89011,3460.1,3459.0,0.55]
[1721399628267,0.578019,3460.0,3459.0,0.55]
[1721399628606,3.468189,3460.0,3459.0,0.55]
[1721399628764,2.89039,3459.8,3459.0,0.55]
[1721399629169,3.468189,3460.0,3459.0,0.55]
[1721399629408,2.89025,3459.9,3459.0,0.55]
[1721399629589,3.5260859,3459.9,3459.0,0.55]
[1721399629915,0.6358359,3459.9,3459.0,0.55]
[1721399630067,2.89009,3460.1,3459.0,0.55]
[1721399630470,2.89017,3460.0,3459.0,0.55]
[1721399631176,2.89,3460.2,3459.0,0.55]
[1721399631510,2.89009,3460.1,3459.0,0.55]
[1721399632824,2.88974,3460.6,3459.1,3.037]
[1721399632971,3.288974,3460.5,3459.2,3.44083]
[1721399633170,2.8899,3460.4,3459.2,3.44083]
[1721399633402,6.178734,3460.5,3459.3,5.92774]
[1721399633612,6.178734,3460.5,3459.4,0.55]
[1721399633908,2.89015,3460.1,3459.4,0.55]
[1721399634111,2.88996,3460.3,3459.2,0.55]
[1721399634112,0.578011,3460.0,3459.2,0.55]
[1721399634267,6.178754,3460.5,3459.3,3.037]
[1721399634502,6.178754,3460.5,3459.4,0.55]
[1721399634704,0.288974,3460.5,3459.5,3.037]
[1721399635020,2.88928,3461.1,3459.6,3.4405]
[1721399635021,2.88951,3460.8,3459.6,3.4405]
[1721399635328,2.88951,3460.8,3459.6,6.4775]
[1721399636341,2.88951,3460.8,3459.7,2.3508]
[1721399636551,2.88964,3460.7,3459.8,0.55]
[1721399636846,2.88949,3460.9,3459.8,0.55]
[1721399637002,1.19044273,3461.4,3459.9,0.05779705]
[1721399637203,1.19044273,3461.4,3459.8,3.587]
[1721399637204,2.88903,3461.4,3460.0,0.55]
[1721399637400,2.88903,3461.4,3459.8,3.587]
[1721399637616,0.288903,3461.3,3459.9,3.63078]
[1721399637804,2.88934,3461.0,3460.0,0.55]
[1721399638007,2.88942,3460.9,3460.0,0.55]
[1721399638267,2.88951,3460.8,3460.0,0.55]
[1721399638415,2.88922,3461.2,3460.0,3.44014]
[1721399638753,2.88922,3461.2,3460.1,0.707092]
[1721399638910,2.88922,3461.2,3460.2,0.55]
[1721399639113,2.88926,3461.1,3460.2,0.55]
[1721399640004,3.177993,3461.3,3460.2,0.55]
[1721399640005,2.88934,3461.0,3460.2,0.55]
[1721399640449,2.88934,3461.0,3460.0,0.55]
[1721399640654,2.88926,3461.1,3460.1,0.418078]
[1721399640856,2.88926,3461.1,3460.2,0.55]
[1721399641004,2.88973,3460.6,3460.0,0.55]
[1721399641205,0.288903,3461.3,3459.7,2.3508]
[1721399641206,2.88948,3460.9,3459.7,2.3508]
[1721399641402,2.88948,3460.9,3459.4,7.33]
[1721399641403,2.88995,3460.3,3459.4,7.33]
[1721399641651,2.88999,3460.3,3459.4,7.33]
[1721399641801,2.89001,3460.2,3459.4,7.33]
[1721399642016,2.89001,3460.2,3459.2,2.4106]
[1721399642220,3.468005,3460.2,3459.2,2.4106]
[1721399642932,0.577985,3460.2,3459.2,2.4106]
[1721399643138,2.89009,3460.1,3459.2,2.4106]
[1721399643455,5.7799,3460.3,3459.2,2.4106]
[1721399643658,2.88975,3460.5,3459.3,5.92774]
[1721399643953,2.88967,3460.6,3459.4,2.89066]
[1721399644116,2.88967,3460.6,3459.5,0.55]
[1721399644117,3.0,3460.5,3459.5,0.55]
[1721399644529,2.88952,3460.8,3459.5,3.587]
[1721399644736,2.8892,3461.2,3459.9,5.92724]
[1721399644916,2.8892,3461.2,3460.0,0.55]
[1721399645147,0.43685457,3461.1,3460.0,0.55]
[1721399645324,2.88939,3461.0,3460.0,0.55]
[1721399645522,2.88947,3460.9,3460.0,0.55]
[1721399645792,3.32611457,3461.1,3460.1,2.3868]
[1721399646066,3.32611457,3461.1,3460.2,0.55]
[1721399646067,0.43685457,3461.1,3460.2,0.55]
[1721399646359,2.88933,3461.0,3460.2,0.55]
[1721399647225,2.88942,3460.9,3460.2,0.55]
[1721399647663,0.43685457,3461.1,3459.5,5.4434]
[1721399647871,2.88981,3460.5,3459.6,0.55]
[1721399648055,2.88992,3460.3,3459.5,2.4064]
[1721399648765,2.88981,3460.5,3459.5,2.4064]
[1721399649657,2.88961,3460.7,3459.6,5.9275]
[1721399649845,2.88961,3460.7,3459.6,7.049963]
[1721399650045,6.49344,3460.9,3459.7,0.55]
[1721399650237,3.0,3460.8,3459.8,3.037]
[1721399650438,0.72190076,3461.0,3459.9,0.55]
[1721399650642,0.72190076,3461.0,3459.9,6.47723]
[1721399650842,0.72190076,3461.0,3460.0,2.89016]
[1721399651040,0.72190076,3461.0,3460.1,0.55]
[1721399651353,0.43685457,3461.1,3460.1,3.44008]
[1721399651521,0.43685457,3461.1,3460.2,2.4925]
[1721399651723,0.43685457,3461.1,3460.3,0.55]
[1721399652265,2.88947,3460.9,3460.3,0.55]
[1721399652426,2.88955,3460.8,3460.3,0.55]
[1721399652621,0.62158746,3460.8,3460.3,0.55]
[1721399654144,0.62158746,3460.8,3459.5,2.89056]
[1721399654145,2.88959,3460.7,3459.5,3.037]
[1721399654325,2.88975,3460.5,3459.5,3.037]
[1721399654972,5.77924,3460.7,3459.5,3.037]
[1721399655139,0.62158746,3460.8,3459.5,3.037]
[1721399655339,0.62158746,3460.8,3459.6,0.842017]
[1721399655529,2.8896,3460.7,3459.6,0.842017]
[1721399655936,0.43685457,3461.1,3459.8,5.92733]
[1721399656242,0.43685457,3461.1,3460.0,3.037]
[1721399656445,1.19044273,3461.4,3460.5,3.037]
[1721399656751,5.41897838,3461.9,3460.5,3.037]
[1721399656752,2.88881,3461.7,3460.6,0.55]
[1721399656961,2.88864,3461.9,3460.7,0.05778089]
[1721399657176,2.88867,3461.8,3460.8,0.55]
[1721399657378,2.88859,3461.9,3460.8,0.55]
[1721399657574,0.69673727,3461.9,3460.8,7.124147]
[1721399657884,0.69673727,3461.9,3460.8,1.197657]
[1721399658297,2.88868,3461.8,3460.8,1.197657]
[1721399658850,2.88876,3461.7,3460.8,1.197657]
[1721399659049,1.88718,3461.9,3460.4,2.4925]
[1721399659367,1.19044273,3461.4,3460.4,2.4925]
[1721399659551,2.88939,3461.0,3460.4,2.4925]
[1721399660675,2.88939,3461.0,3459.9,2.4005]
[1721399661346,4.07953273,3461.3,3460.0,5.92716]
[1721399661552,1.19044273,3461.3,3460.3,3.037]
[1721399661850,3.0,3461.5,3460.4,2.88981]
[1721399662167,5.88892,3461.5,3460.5,0.55]
[1721399662364,5.88892,3461.5,3460.4,0.55]
[1721399662573,3.0,3461.5,3460.4,0.55]
[1721399662766,4.19044273,3461.6,3460.4,3.43978]
[1721399663074,5.88886,3461.6,3460.4,3.38978]
[1721399663701,3.0,3461.6,3460.4,0.5]
[1721399663908,4.19044273,3461.6,3460.4,0.5]
[1721399664049,2.88917,3461.2,3459.5,2.89056]
[1721399664250,2.88917,3461.2,3459.7,3.0]
[1721399664469,2.88929,3461.1,3459.7,5.89035]
[1721399664767,2.88917,3461.2,3460.0,3.037]
[1721399664768,3.604,3461.2,3460.0,3.037]
[1721399664961,2.889,3461.4,3460.2,2.88999]
[1721399665470,2.889,3461.4,3460.0,3.037]
[1721399665471,2.88917,3461.2,3460.0,5.92715]
[1721399665679,2.88917,3461.2,3459.6,3.732507]
[1721399665680,2.88958,3460.8,3459.6,3.732507]
[1721399665974,2.88958,3460.8,3459.7,3.037]
[1721399666289,2.88958,3460.8,3460.0,0.55]
[1721399666659,2.88935,3461.0,3460.0,0.55]
[1721399666976,4.46837953,3461.2,3460.0,0.55]
[1721399666977,2.8895,3460.8,3460.0,0.55]
[1721399667554,2.88935,3461.0,3460.0,0.55]
[1721399667759,2.88942,3460.9,3460.0,0.55]
[1721399668768,0.80725495,3461.0,3460.0,0.55]
[1721399668959,2.88982,3460.5,3459.3,3.037]
[1721399669594,2.88982,3460.5,3459.3,5.92774]
[1721399669959,2.88967,3460.6,3459.4,5.92767]
[1721399670159,3.604,3460.8,3459.4,5.92767]
[1721399670400,7.29459484,3460.8,3460.0,0.55]
[1721399670568,2.88935,3461.0,3460.0,0.55]
[1721399671404,4.07963273,3461.2,3460.0,3.587]
[1721399671557,3.0,3461.1,3460.0,6.47711]
[1721399671757,2.88935,3461.0,3460.1,0.62951249]
[1721399672006,2.88935,3461.0,3460.2,0.55]
[1721399672007,4.07979273,3461.0,3460.2,0.55]
[1721399672200,2.88952,3460.8,3460.0,0.55]
[1721399672402,2.88942,3460.9,3460.0,0.55]
[1721399672983,4.07986273,3460.9,3460.0,0.55]
[1721399673160,4.07978273,3461.0,3460.0,0.55]
[1721399673365,2.88959,3460.7,3460.0,0.55]
[1721399673810,1.19044273,3460.9,3460.1,3.037]
[1721399673969,4.07950273,3461.4,3460.3,3.037]
[1721399674166,2.88911,3461.3,3460.4,0.55]
[1721399674411,3.73724326,3461.3,3460.4,0.55]
[1721399674705,4.07940273,3461.5,3460.3,6.47691]
[1721399674868,5.11712514,3461.7,3460.3,6.47691]
[1721399674869,7.68324273,3461.7,3460.6,2.88965]
[1721399675210,3.604,3461.7,3460.7,0.55]
[1721399675386,2.88868,3461.8,3460.7,0.55]
[1721399675595,3.73675679,3461.8,3460.7,1.719577]
[1721399675760,3.73675679,3461.8,3460.7,4.609147]
[1721399676302,1.19044273,3462.1,3461.0,2.88926]
[1721399676610,2.88842,3462.1,3461.1,0.55]
[1721399676982,2.88842,3462.1,3461.0,0.55]
[1721399677781,2.8885,3462.0,3461.0,0.55]
[1721399678794,2.88858,3461.9,3461.0,0.55]
[1721399679106,2.88892,3461.5,3460.8,0.55]
[1721399679275,1.51262758,3462.2,3460.6,0.55]
[1721399679276,2.88883,3461.7,3460.6,0.55]
[1721399680823,2.88883,3461.7,3460.6,3.43967]
[1721399681328,2.88883,3461.7,3460.6,0.55]
[1721399681819,2.88883,3461.7,3460.7,0.880604]
[1721399682020,2.88883,3461.7,3460.8,0.55]
[1721399682186,2.889,3461.4,3460.8,0.55]
[1721399682587,2.88883,3461.7,3460.8,0.55]
[1721399682588,2.88893,3461.5,3460.8,0.55]
[1721399683129,2.88909,3461.3,3460.8,0.55]
[1721399683285,2.88909,3461.3,3460.6,0.55]
[1721399683485,2.88909,3461.3,3460.6,0.83793]
[1721399683894,2.88893,3461.5,3460.6,0.83793]
[1721399684225,2.88864,3461.9,3460.7,3.037]
[1721399684430,2.88868,3461.8,3460.8,0.55]
[1721399684583,2.88859,3461.9,3460.8,0.55]
[1721399684788,2.88859,3461.9,3460.9,0.676449]
[1721399684989,2.88859,3461.9,3461.0,0.55]
[1721399685209,3.604,3462.1,3461.0,0.55]
[1721399685210,2.88867,3461.8,3461.0,0.55]
[1721399685537,2.88875,3461.7,3461.0,0.55]
[1721399685691,2.88875,3461.7,3460.7,0.55]
[1721399685894,2.88875,3461.7,3460.7,1.155692]
[1721399686225,2.88884,3461.6,3460.7,1.155692]
[1721399686423,2.88884,3461.6,3460.7,0.55]
[1721399686716,2.88868,3461.8,3460.7,0.55]
[1721399687241,2.88877,3461.7,3460.7,0.55]
[1721399687441,2.88868,3461.8,3460.7,6.47656]
[1721399687611,2.8885,3462.0,3460.7,6.47656]
[1721399687612,2.8885,3462.0,3460.7,3.587]
[1721399687813,1.06829427,3461.9,3460.7,4.78537]
[1721399688028,2.88875,3461.7,3460.7,1.74837]
[1721399688848,2.88875,3461.7,3460.7,4.78537]
[1721399689032,2.8886,3461.9,3460.7,4.78537]
[1721399689553,2.88867,3461.8,3460.7,7.67495]
[1721399689697,2.88867,3461.8,3460.8,1.2894]
[1721399689902,2.88867,3461.8,3460.9,0.55]
[1721399690333,2.88875,3461.7,3460.9,0.55]
[1721399691246,1.19044273,3461.9,3460.9,0.55]
[1721399691537,1.19044273,3461.9,3460.6,0.55]
[1721399691736,2.88903,3461.4,3460.6,0.55]
[1721399692243,2.88909,3461.3,3460.6,0.55]
[1721399693145,2.88898,3461.5,3460.6,0.55]
[1721399693366,5.58978,3461.7,3460.6,0.55]
[1721399693530,2.88892,3461.5,3460.6,0.55]
[1721399693838,2.88892,3461.5,3460.6,1.430613]
[1721399694042,5.58978,3461.7,3460.6,1.430613]
[1721399695310,2.88888,3461.6,3460.6,1.430613]
[1721399695702,2.88892,3461.5,3460.6,1.430613]
[1721399696331,2.88903,3461.4,3460.6,1.430613]
[1721399696703,2.88909,3461.3,3460.6,1.430613]
[1721399697410,2.88926,3461.1,3460.6,0.55]
[1721399697632,2.88926,3461.1,3460.0,7.33]
[1721399697633,2.701,3460.9,3460.0,7.33]
[1721399697820,2.88966,3460.7,3459.9,2.4157]
[1721399698658,2.88962,3460.7,3459.9,2.4157]
[1721399698822,2.88984,3460.4,3459.9,2.4157]
[1721399699365,0.38882864,3460.8,3459.9,2.4157]
[1721399699536,0.38882864,3460.8,3459.3,7.33]
[1721399699537,2.89008,3460.2,3459.3,9.7192]
[1721399699735,2.89008,3460.2,3459.3,2.3892]
[1721399700144,2.89009,3460.1,3459.3,2.3892]
[1721399700462,2.88986,3460.4,3459.4,0.54262]
[1721399701236,1.19044273,3460.7,3459.6,2.8905]
[1721399701451,2.88959,3460.7,3459.7,3.587]
[1721399701765,2.88959,3460.7,3459.8,0.55]
[1721399702061,5.59043,3460.9,3459.8,0.55]
[1721399702264,2.88956,3460.8,3459.9,0.93679]
[1721399702560,2.88956,3460.8,3460.0,0.55]
[1721399702928,2.88956,3460.8,3459.7,3.587]
[1721399703260,4.51336722,3461.2,3459.7,3.587]
[1721399703261,7.07963273,3461.2,3459.9,3.037]
[1721399703477,3.0,3461.1,3460.0,3.587]
[1721399703676,5.88926,3461.1,3460.1,0.878605]
[1721399703891,1.19044273,3461.2,3460.4,3.037]
[1721399704188,2.88862,3461.9,3460.9,2.2748]
[1721399704189,2.88864,3461.9,3460.9,2.2748]
[1721399704377,2.88888,3461.6,3460.9,2.2748]
[1721399704577,2.88888,3461.6,3461.0,0.55]
[1721399704784,2.88892,3461.5,3461.0,0.55]
[1721399705940,2.701,3461.6,3461.0,0.55]
[1721399706142,2.88881,3461.7,3461.0,0.55]
[1721399706678,2.8886,3461.9,3461.0,0.55]
[1721399706883,4.07894273,3462.0,3461.0,0.83248]
[1721399707047,2.8885,3462.0,3461.0,0.83248]
[1721399707660,2.8885,3462.0,3461.0,0.55]
[1721399707977,2.88858,3461.9,3461.0,0.55]
[1721399711569,2.88897,3461.5,3460.9,2.2748]
[1721399711745,2.88931,3461.1,3460.2,2.4825]
[1721399711947,4.79244273,3461.6,3460.2,2.4825]
[1721399712470,2.88893,3461.5,3460.3,2.88991]
[1721399712655,2.889,3461.4,3460.3,2.88991]
[1721399712873,2.88909,3461.3,3460.4,0.537241]
[1721399713080,2.88895,3461.5,3460.5,0.55]
[1721399713675,2.889,3461.4,3460.5,0.55]
[1721399714573,2.88884,3461.6,3460.5,0.55]
[1721399715012,1.19044273,3461.7,3460.5,0.55]
[1721399715213,1.19044273,3461.7,3460.7,2.88958]
[1721399715214,3.0,3461.7,3460.7,2.88958]
[1721399715508,5.8885,3462.0,3460.6,0.4124241]
[1721399715509,2.8885,3462.0,3460.8,5.81869]
[1721399715807,1.19044273,3462.1,3460.9,0.05777937]
[1721399716114,1.19044273,3462.1,3461.0,1.13765594]
[1721399716115,2.88843,3462.1,3461.0,1.13765594]
[1721399716261,2.88851,3462.0,3461.0,1.13765594]